bitfinex-derivatives/quotes_BNBF0:USTF0_20251010
["timestamp","ask_amount","ask_price","bid_price","bid_amount"]
[1760109544663,0.19079547,1227.9,1227.7,0.19885765]
[1760109545065,0.19079547,1228.1,1227.7,0.19885765]
[1760109545464,0.19079547,1228.1,1227.6,0.19885765]
[1760109545666,0.19079547,1227.9,1227.6,0.19885765]
[1760109546565,0.19079547,1228.0,1227.6,0.19885765]
[1760109547364,0.19079547,1227.8,1227.6,0.19885765]
[1760109548171,0.19079547,1227.8,1227.2,0.19885765]
[1760109548371,0.19079547,1227.3,1227.1,0.19885765]
[1760109548970,0.19079547,1227.5,1227.1,0.19885765]
[1760109549171,0.19079547,1227.5,1226.9,0.19885765]
[1760109549470,0.19079547,1227.2,1226.9,0.19885765]
[1760109549670,0.19079547,1227.2,1226.8,0.19885765]
[1760109550172,0.19079547,1227.0,1226.7,0.19885765]
[1760109550567,0.19079547,1227.0,1226.8,0.19885765]
[1760109550869,0.19079547,1227.3,1226.8,0.19885765]
[1760109551072,0.19079547,1227.5,1227.2,0.19885765]
[1760109551669,0.19079547,1227.7,1227.4,0.19885765]
[1760109551869,0.19079547,1227.8,1227.4,0.19885765]
[1760109552069,0.19079547,1227.9,1227.7,0.19885765]
[1760109552372,0.19079547,1227.9,1226.5,0.59971021]
[1760109552373,0.19079547,1227.9,1227.6,0.19885765]
[1760109552568,0.19079547,1227.7,1227.4,0.19885765]
[1760109552769,0.19079547,1227.7,1227.3,0.19885765]
[1760109552972,0.19079547,1227.7,1227.1,0.19885765]
[1760109553173,0.19079547,1227.5,1227.1,0.19885765]
[1760109553371,0.19079547,1227.6,1227.3,0.19885765]
[1760109554173,0.19079547,1227.5,1227.3,0.19885765]
[1760109554670,1.9536369,1232.5,1227.3,0.19885765]
[1760109554671,0.19079547,1227.4,1227.3,0.19885765]
[1760109554870,0.19079547,1227.4,1227.2,0.19885765]
[1760109555668,0.19079547,1227.5,1227.2,0.19885765]
[1760109555875,0.19079547,1227.6,1227.2,0.19885765]
[1760109556074,0.19079547,1227.6,1227.4,0.19885765]
[1760109557470,0.19079547,1227.6,1227.3,0.19885765]
[1760109557676,0.19079547,1227.6,1226.7,0.19885765]
[1760109557877,0.19079547,1226.9,1226.7,0.19885765]
[1760109558077,0.19079547,1226.9,1226.6,0.19885765]
[1760109558574,0.19079547,1226.7,1226.3,0.19885765]
[1760109558780,0.19079547,1226.7,1226.2,0.19885765]
[1760109559075,0.19079547,1226.4,1226.1,0.19885765]
[1760109559376,0.19079547,1226.4,1226.0,0.19885765]
[1760109559574,0.19079547,1226.5,1226.0,0.19885765]
[1760109559774,0.19079547,1226.5,1226.2,0.19885765]
[1760109560174,0.19079547,1226.4,1226.2,0.19885765]
[1760109560374,0.19079547,1226.4,1226.0,0.19885765]
[1760109560873,0.7832541,1229.6,1226.1,0.19885765]
[1760109560874,0.19079547,1226.3,1226.1,0.19885765]
[1760109561075,0.19079547,1226.3,1226.0,0.19885765]
[1760109561274,0.19079547,1226.2,1226.0,0.19885765]
[1760109561477,0.19079547,1226.2,1225.8,0.19885765]
[1760109561879,0.19079547,1226.1,1225.8,0.19885765]
[1760109562278,0.19079547,1226.2,1225.8,0.19885765]
[1760109562577,0.19079547,1226.2,1225.9,0.19885765]
[1760109563273,0.19079547,1226.3,1226.0,0.19885765]
[1760109563779,0.19079547,1226.2,1226.0,0.19885765]
[1760109563978,0.19079547,1226.2,1225.9,0.19885765]
[1760109564378,0.19079547,1226.1,1225.9,0.19885765]
[1760109565779,0.19079547,1226.2,1225.9,0.19885765]
[1760109566075,0.19079547,1226.3,1225.9,0.19885765]
[1760109566280,0.19079547,1226.3,1225.8,0.19885765]
[1760109566481,0.7832541,1229.5,1225.5,0.19885765]
[1760109566675,0.18924699,1225.9,1225.5,0.19885765]
[1760109566979,0.18924699,1225.9,1225.6,0.19885765]
[1760109567176,0.18924699,1226.0,1225.6,0.19885765]
[1760109567479,0.18924699,1226.0,1225.7,0.19885765]
[1760109567878,0.18924699,1225.9,1225.6,0.19885765]
[1760109568280,0.18924699,1225.8,1225.5,0.19885765]
[1760109568982,0.18924699,1225.9,1225.7,0.19885765]
[1760109569382,0.18924699,1225.9,1225.4,0.19885765]
[1760109569581,0.18924699,1225.6,1225.4,0.19885765]
[1760109570385,0.18875076,1225.5,1225.2,0.19885765]
[1760109570781,0.18875076,1225.5,1223.6,0.59971021]
[1760109570782,0.18875076,1225.5,1225.3,0.19885765]
[1760109570984,0.18875076,1225.6,1225.3,0.19885765]
[1760109571179,0.18875076,1225.7,1225.3,0.19885765]
[1760109571481,0.18875076,1225.7,1225.5,0.19885765]
[1760109572385,0.18875076,1225.6,1225.4,0.19885765]
[1760109572585,0.18875076,1225.6,1225.3,0.19885765]
[1760109573082,0.18875076,1225.6,1225.4,0.19885765]
[1760109573781,0.18875076,1225.7,1225.5,0.19885765]
[1760109573986,0.18875076,1225.8,1225.4,0.19885765]
[1760109574381,0.18875076,1225.8,1225.5,0.19885765]
[1760109574785,0.18875076,1225.7,1225.5,0.19885765]
[1760109575086,0.18875076,1226.1,1225.6,0.19885765]
[1760109575486,0.18875076,1226.1,1225.7,0.19885765]
[1760109575787,0.18875076,1225.8,1225.5,0.19885765]
[1760109576485,0.18875076,1225.6,1225.3,0.19885765]
[1760109576784,0.18875076,1225.5,1225.3,0.19885765]
[1760109576987,0.18875076,1225.5,1225.2,0.19885765]
[1760109577588,0.18875076,1225.6,1225.3,0.19885765]
[1760109577989,0.18875076,1225.6,1225.4,0.19885765]
[1760109578489,0.18875076,1226.0,1225.4,0.19885765]
[1760109578685,0.18875076,1226.2,1225.4,0.19885765]
[1760109578889,0.18875076,1226.2,1226.0,0.19690972]
[1760109579389,0.18875076,1226.2,1225.9,0.19690972]
[1760109579592,0.18875076,1226.2,1225.7,0.19690972]
[1760109579786,0.18875076,1225.9,1225.7,0.19690972]
[1760109580886,0.18875076,1226.0,1225.7,0.19690972]
[1760109581489,0.18875076,1225.9,1225.7,0.19690972]
[1760109582293,0.18875076,1225.9,1225.6,0.19690972]
[1760109582493,0.18875076,1225.8,1225.5,0.19690972]
[1760109582988,0.7832541,1229.1,1225.2,0.19690972]
[1760109583190,0.18833039,1225.4,1225.2,0.19690972]
[1760109583589,0.18833039,1225.5,1225.3,0.19690972]
[1760109583790,0.18833039,1225.6,1225.3,0.19690972]
[1760109583993,0.18833039,1225.6,1225.4,0.19690972]
[1760109584990,0.18833039,1225.7,1225.5,0.19690972]
[1760109585192,0.18833039,1225.8,1225.5,0.19690972]
[1760109585490,0.18833039,1225.8,1225.6,0.19690972]
[1760109586093,0.18833039,1225.8,1225.4,0.19690972]
[1760109586489,0.18833039,1225.6,1225.4,0.19690972]
[1760109587491,0.18833039,1225.7,1225.4,0.19690972]
[1760109587991,0.18833039,1225.9,1225.5,0.19690972]
[1760109588391,0.18833039,1225.9,1225.7,0.19690972]
[1760109589092,0.18833039,1226.0,1225.7,0.19690972]
[1760109589390,0.18833039,1226.0,1225.5,0.19690972]
[1760109589891,0.18833039,1225.8,1225.5,0.19690972]
[1760109590297,0.18833039,1225.7,1225.5,0.19690972]
[1760109591095,0.18833039,1225.7,1225.4,0.19690972]
[1760109591296,0.18833039,1225.5,1225.3,0.19690972]
[1760109591595,0.18833039,1225.5,1225.2,0.19690972]
[1760109591796,0.18833039,1225.4,1225.2,0.19690972]
[1760109592292,0.18833039,1225.3,1225.1,0.19690972]
[1760109592794,0.18833039,1225.5,1225.1,0.19690972]
[1760109592995,0.18833039,1225.6,1225.3,0.19690972]
[1760109593496,0.18833039,1225.6,1225.4,0.19690972]
[1760109593893,0.18833039,1225.7,1225.4,0.19690972]
[1760109594095,0.18833039,1225.7,1225.3,0.19690972]
[1760109594395,0.18833039,1225.6,1225.3,0.19690972]
[1760109595096,0.18833039,1225.5,1225.3,0.19690972]
[1760109595498,0.18833039,1225.6,1225.3,0.19690972]
[1760109595697,0.18833039,1225.7,1225.3,0.19690972]
[1760109596094,0.18833039,1225.7,1225.5,0.19690972]
[1760109596694,0.7832541,1228.7,1225.3,0.19690972]
[1760109596894,0.18972357,1225.6,1225.3,0.19690972]
[1760109597795,0.18972357,1225.7,1225.3,0.19690972]
[1760109598000,0.18972357,1226.1,1224.5,0.59667172]
[1760109598200,0.18972357,1226.1,1225.8,0.19891476]
[1760109598396,0.18972357,1226.0,1225.8,0.19891476]
[1760109598796,0.18972357,1226.1,1225.8,0.19891476]
[1760109598998,0.18972357,1226.2,1225.8,0.19891476]
[1760109599296,0.18972357,1226.2,1225.9,0.19891476]
[1760109599498,0.18972357,1226.1,1225.9,0.19891476]
[1760109599897,0.18972357,1226.1,1225.7,0.19891476]
[1760109600102,0.18972357,1225.9,1225.7,0.19891476]
[1760109600300,0.18972357,1225.9,1225.6,0.19891476]
[1760109600799,0.18972357,1225.8,1225.6,0.19891476]
[1760109601102,0.7832541,1228.6,1225.4,0.19891476]
[1760109601302,0.19025451,1225.7,1225.4,0.19891476]
[1760109601698,1.9536369,1230.1,1225.2,0.19891476]
[1760109601699,0.7832541,1228.9,1225.2,0.19891476]
[1760109601902,0.1904555,1225.5,1225.2,0.19891476]
[1760109602100,0.1904555,1225.6,1225.2,0.19891476]
[1760109602298,0.1904555,1225.6,1225.3,0.19891476]
[1760109602997,0.1904555,1225.5,1225.3,0.19891476]
[1760109603602,0.1904555,1225.7,1225.3,0.19891476]
[1760109604202,0.7832541,1228.4,1224.5,0.59953011]
[1760109604203,0.1904555,1225.6,1225.4,0.19891476]
[1760109604698,0.1904555,1225.7,1225.4,0.19891476]
[1760109605204,0.1904555,1226.0,1224.9,0.59953011]
[1760109605500,0.1904555,1226.0,1225.8,0.20012829]
[1760109606102,0.1904555,1225.9,1225.6,0.20012829]
[1760109606301,0.1904555,1226.0,1225.6,0.20012829]
[1760109606804,0.1904555,1225.7,1225.4,0.20012829]
[1760109607104,0.1904555,1225.7,1225.2,0.20012829]
[1760109607304,0.1904555,1225.5,1225.2,0.20012829]
[1760109607505,0.1904555,1225.5,1225.1,0.20012829]
[1760109608004,0.1904555,1225.3,1225.0,0.20012829]
[1760109608405,0.1904555,1225.2,1225.0,0.20012829]
[1760109610305,0.1904555,1225.5,1225.0,0.20012829]
[1760109610503,0.1904555,1225.5,1225.3,0.20012829]
[1760109610704,0.1904555,1225.6,1225.3,0.20012829]
[1760109611906,0.1904555,1225.5,1225.1,0.20012829]
[1760109612408,0.1904555,1225.5,1225.3,0.20012829]
[1760109612711,0.1904555,1225.5,1225.2,0.20012829]
[1760109612908,0.1904555,1225.4,1225.2,0.20012829]
[1760109613512,0.1904555,1225.5,1225.2,0.20012829]
[1760109614314,0.1904555,1225.6,1225.4,0.20012829]
[1760109614510,0.1904555,1225.8,1225.4,0.20012829]
[1760109614712,0.1904555,1226.0,1225.3,0.59953011]
[1760109614913,0.1904555,1226.1,1225.8,0.20136393]
[1760109615515,0.1904555,1226.3,1225.8,0.20136393]
[1760109615821,0.1904555,1226.4,1226.2,0.20136393]
[1760109616018,0.1904555,1226.4,1226.0,0.20136393]
[1760109616717,0.1904555,1226.6,1226.1,0.59953011]
[1760109617018,0.1904555,1226.6,1226.4,0.20178442]
[1760109617515,0.1904555,1226.6,1226.3,0.20178442]
[1760109617718,0.1904555,1226.5,1226.2,0.20178442]
[1760109618215,0.1904555,1226.7,1226.3,0.80131453]
[1760109618418,0.1904555,1226.7,1226.3,0.20178442]
[1760109618620,0.1904555,1226.7,1226.4,0.20178442]
[1760109619218,0.1904555,1226.8,1226.6,0.20178442]
[1760109619422,0.1904555,1226.9,1226.6,0.20178442]
[1760109619722,0.1904555,1227.0,1226.3,0.20178442]
[1760109620017,0.1904555,1226.7,1226.3,0.80131453]
[1760109620218,0.1904555,1226.8,1226.6,0.20178442]
[1760109620818,0.1904555,1226.9,1226.6,0.20178442]
[1760109621023,0.1904555,1227.1,1226.7,0.59953011]
[1760109621318,0.1904555,1227.1,1226.9,0.20178442]
[1760109621624,0.7832541,1229.0,1226.6,0.20178442]
[1760109621826,0.1932935,1227.0,1226.6,0.20178442]
[1760109622025,0.1932935,1227.0,1226.7,0.20178442]
[1760109622225,0.1932935,1226.8,1226.6,0.20178442]
[1760109622826,0.1932935,1226.7,1226.4,0.20178442]
[1760109623025,0.1932935,1226.7,1224.5,1.9784871]
[1760109623026,0.1932935,1226.7,1226.3,0.20178442]
[1760109623228,0.1932935,1226.8,1226.3,0.80131453]
[1760109623627,0.1932935,1226.8,1226.6,0.20178442]
[1760109624025,0.1932935,1226.8,1226.5,0.20178442]
[1760109624226,0.1932935,1226.6,1226.4,0.20178442]
[1760109624521,0.1932935,1226.6,1226.3,0.20178442]
[1760109624727,0.1932935,1226.5,1226.3,0.20178442]
[1760109625427,0.1932935,1226.8,1226.3,0.80131453]
[1760109625722,0.1932935,1226.8,1226.3,0.20178442]
[1760109625930,0.1932935,1226.4,1226.2,0.20178442]
[1760109626528,0.1932935,1226.5,1226.2,0.20178442]
[1760109627224,0.1932935,1226.4,1226.2,0.20178442]
[1760109627626,0.1932935,1226.4,1226.1,0.20178442]
[1760109628027,0.1932935,1226.3,1226.1,0.20178442]
[1760109628324,0.1932935,1226.3,1225.9,0.20178442]
[1760109628529,0.1932935,1226.1,1225.9,0.20178442]
[1760109629429,0.1932935,1226.2,1225.9,0.20178442]
[1760109630126,0.1932935,1226.3,1226.0,0.20178442]
[1760109630328,0.1932935,1226.5,1226.0,0.80131453]
[1760109630529,0.1932935,1226.5,1226.2,0.20178442]
[1760109630728,0.1932935,1226.6,1226.2,0.20178442]
[1760109630930,0.1932935,1226.6,1226.4,0.20178442]
[1760109631128,0.1932935,1226.7,1226.4,0.20178442]
[1760109631431,0.1932935,1226.8,1226.6,0.20178442]
[1760109632033,0.1932935,1226.8,1226.5,0.20178442]
[1760109632630,0.1932935,1226.7,1226.4,0.20178442]
[1760109632833,0.1932935,1226.7,1226.3,0.20178442]
[1760109633035,0.1932935,1226.6,1226.3,0.20178442]
[1760109633334,0.1932935,1226.7,1226.5,0.20178442]
[1760109633535,0.1932935,1226.7,1226.4,0.20178442]
[1760109633734,0.1932935,1226.7,1226.0,0.59953011]
[1760109633735,0.1932935,1226.6,1226.3,0.20178442]
[1760109634234,0.1932935,1226.5,1226.3,0.20178442]
[1760109634430,0.1932935,1226.5,1226.1,0.20178442]
[1760109634631,0.1932935,1226.2,1225.9,0.20178442]
[1760109635135,0.7832541,1228.1,1225.6,0.20178442]
[1760109635435,0.19265279,1225.8,1225.6,0.20178442]
[1760109635735,0.7832541,1227.8,1225.4,0.20178442]
[1760109635931,0.19260797,1225.6,1225.3,0.20178442]
[1760109636131,0.19260797,1225.6,1225.2,0.20178442]
[1760109636536,0.19260797,1225.4,1225.1,0.20178442]
[1760109637235,0.19260797,1225.6,1225.3,0.20178442]
[1760109637633,0.19260797,1225.5,1225.3,0.20178442]
[1760109637937,0.19260797,1225.5,1225.2,0.20178442]
[1760109638137,0.19260797,1225.4,1225.2,0.20178442]
[1760109638340,0.19260797,1225.4,1225.1,0.20178442]
[1760109639231,0.19260797,1225.3,1225.1,0.20178442]
[1760109639736,0.19260797,1225.4,1225.1,0.20178442]
[1760109640237,0.19260797,1225.5,1225.1,0.20178442]
[1760109640438,0.19260797,1225.5,1225.3,0.20178442]
[1760109641143,0.19260797,1225.6,1225.3,0.20178442]
[1760109641437,0.19260797,1225.6,1225.0,0.59953011]
[1760109641438,0.19260797,1225.6,1225.4,0.20178442]
[1760109641639,0.19260797,1225.6,1225.2,0.20178442]
[1760109642034,0.19260797,1225.4,1225.1,0.20178442]
[1760109642338,0.19260797,1225.4,1225.0,0.20178442]
[1760109642738,0.19260797,1225.2,1225.0,0.20178442]
[1760109642939,0.19260797,1225.2,1224.9,0.20178442]
[1760109643138,0.19260797,1225.2,1223.7,0.20178442]
[1760109643334,0.19260797,1224.0,1223.7,0.20178442]
[1760109643535,0.19260797,1224.6,1223.3,0.59953011]
[1760109643836,0.19260797,1224.6,1223.9,0.20163651]
[1760109644039,0.19260797,1224.0,1223.8,0.20163651]
[1760109644538,0.19260797,1223.9,1223.7,0.20163651]
[1760109644834,0.19260797,1223.9,1223.6,0.20163651]
[1760109645435,0.19260797,1224.1,1223.6,0.20163651]
[1760109645640,0.19260797,1224.4,1223.6,0.59953011]
[1760109645939,0.19260797,1224.6,1224.2,0.20103733]
[1760109646140,0.19260797,1224.7,1224.2,0.20103733]
[1760109646335,0.19260797,1224.9,1224.1,0.59953011]
[1760109646534,0.19260797,1224.9,1224.7,0.20086632]
[1760109646734,0.19260797,1225.0,1224.7,0.20086632]
[1760109647137,0.19260797,1224.8,1224.6,0.20086632]
[1760109647933,0.19260797,1224.9,1224.6,0.20086632]
[1760109648537,0.19260797,1225.0,1224.6,0.20086632]
[1760109648741,0.19260797,1225.0,1224.8,0.20086632]
[1760109649039,0.19260797,1224.9,1224.6,0.20086632]
[1760109649440,0.19260797,1224.9,1222.3,1.9784871]
[1760109649441,0.19260797,1224.9,1224.5,0.20086632]
[1760109649641,0.19260797,1224.7,1224.5,0.20086632]
[1760109650236,0.7832541,1227.2,1224.3,0.20086632]
[1760109650438,0.191308,1224.5,1224.3,0.20086632]
[1760109651844,0.191308,1224.7,1224.3,0.20086632]
[1760109652039,0.191308,1224.9,1224.3,0.20086632]
[1760109652342,0.191308,1224.9,1224.7,0.20086632]
[1760109652742,0.191308,1224.9,1224.6,0.20086632]
[1760109653243,0.191308,1224.8,1224.4,0.20086632]
[1760109653744,0.191308,1224.7,1224.4,0.20086632]
[1760109654038,0.191308,1224.9,1224.4,0.20086632]
[1760109654238,0.191308,1224.9,1223.6,0.79912672]
[1760109654239,0.191308,1224.9,1224.6,0.20086632]
[1760109654841,0.191308,1225.0,1224.7,0.20086632]
[1760109655442,0.191308,1225.1,1224.7,0.20086632]
[1760109655746,0.191308,1225.1,1224.9,0.20086632]
[1760109655944,0.191308,1225.3,1224.9,0.20086632]
[1760109656148,0.191308,1225.5,1224.9,0.20086632]
[1760109656343,0.191308,1225.6,1225.3,0.20086632]
[1760109656545,0.191308,1225.7,1225.3,0.20086632]
[1760109656748,0.191308,1225.9,1225.6,0.20086632]
[1760109656943,0.191308,1226.1,1225.6,0.20086632]
[1760109657145,0.191308,1226.3,1225.6,0.20086632]
[1760109657449,0.191308,1226.4,1226.1,0.20086632]
[1760109658452,0.191308,1226.7,1225.7,0.59953011]
[1760109658651,0.191308,1226.7,1226.3,0.20004488]
[1760109658851,0.191308,1226.4,1226.3,0.20004488]
[1760109659047,0.191308,1226.4,1226.0,0.20004488]
[1760109659551,0.191308,1226.3,1226.1,0.20004488]
[1760109660153,0.191308,1226.3,1225.9,0.20004488]
[1760109660452,0.7832541,1228.7,1225.7,0.20004488]
[1760109660649,0.19159328,1225.9,1225.7,0.20004488]
[1760109660853,0.19159328,1225.9,1225.4,0.20004488]
[1760109661049,0.7832541,1228.3,1225.2,0.20004488]
[1760109661252,0.19147151,1225.4,1225.2,0.20004488]
[1760109662155,0.19147151,1225.7,1225.2,0.20004488]
[1760109662452,0.19147151,1225.9,1225.0,0.59953011]
[1760109662653,0.19147151,1226.0,1225.7,0.20015618]
[1760109662853,0.19147151,1226.0,1225.6,0.20015618]
[1760109663258,0.19147151,1225.8,1225.6,0.20015618]
[1760109663457,0.19147151,1225.8,1225.3,0.20015618]
[1760109663652,0.19147151,1225.5,1225.3,0.20015618]
[1760109664158,0.19147151,1225.4,1225.1,0.20015618]
[1760109664352,0.19147151,1225.4,1225.0,0.20015618]
[1760109664754,0.19147151,1225.1,1224.9,0.20015618]
[1760109664958,0.19147151,1225.2,1224.9,0.20015618]
[1760109665153,0.19147151,1225.2,1225.0,0.20015618]
[1760109665659,0.19147151,1225.2,1224.9,0.20015618]
[1760109666056,0.19147151,1225.0,1224.7,0.20015618]
[1760109666557,0.19147151,1225.1,1224.9,0.20015618]
[1760109666861,0.19147151,1225.2,1224.9,0.20015618]
[1760109667261,0.19147151,1225.1,1224.9,0.20015618]
[1760109667458,0.19147151,1225.1,1224.8,0.20015618]
[1760109667660,0.7832541,1227.6,1224.5,0.20015618]
[1760109667856,0.19131968,1224.9,1224.5,0.20015618]
[1760109668057,0.19131968,1224.9,1224.7,0.20015618]
[1760109668259,0.19131968,1225.0,1224.7,0.20015618]
[1760109668958,0.19131968,1224.9,1224.6,0.20015618]
[1760109669458,0.19131968,1224.9,1224.7,0.20015618]
[1760109669859,0.19131968,1224.9,1224.6,0.20015618]
[1760109670264,0.19131968,1224.9,1224.4,0.20015618]
[1760109670464,0.19131968,1224.7,1224.4,0.20015618]
[1760109670665,0.19131968,1224.9,1224.4,0.20015618]
[1760109670861,0.19131968,1224.9,1224.6,0.20015618]
[1760109671364,0.19131968,1224.9,1224.7,0.20015618]
[1760109671565,0.19131968,1224.9,1224.5,0.20015618]
[1760109671966,0.19131968,1224.9,1224.6,0.20015618]
[1760109672466,0.19131968,1224.7,1224.4,0.20015618]
[1760109672966,0.19131968,1224.7,1224.5,0.20015618]
[1760109673762,0.19131968,1224.7,1224.4,0.20015618]
[1760109674267,0.19131968,1224.6,1224.3,0.20015618]
[1760109674468,0.19131968,1224.6,1224.1,0.20015618]
[1760109674769,0.19131968,1224.2,1224.0,0.20015618]
[1760109675169,0.19131968,1224.3,1224.0,0.20015618]
[1760109675364,0.19131968,1224.4,1224.0,0.20015618]
[1760109675564,0.19131968,1224.4,1224.1,0.20015618]
[1760109675767,0.19131968,1224.7,1224.1,0.20015618]
[1760109675965,0.19131968,1224.7,1224.4,0.20015618]
[1760109676572,0.19131968,1224.8,1224.5,0.20015618]
[1760109677769,0.19131968,1224.8,1224.6,0.20015618]
[1760109678274,0.19131968,1224.9,1224.7,0.20015618]
[1760109678572,0.19131968,1225.1,1224.7,0.20015618]
[1760109678774,0.19131968,1225.2,1225.0,0.20015618]
[1760109678970,0.19131968,1225.4,1225.0,0.20015618]
[1760109679375,0.19131968,1225.4,1225.2,0.20015618]
[1760109679575,0.19131968,1225.4,1225.1,0.20015618]
[1760109679775,0.19131968,1225.4,1225.0,0.20015618]
[1760109679973,0.19131968,1225.4,1224.1,0.59953011]
[1760109679974,0.7832541,1227.6,1224.8,0.20015618]
[1760109680172,0.7832541,1227.4,1224.6,0.20015618]
[1760109680377,0.19108052,1224.7,1224.4,0.20015618]
[1760109680877,0.19108052,1224.6,1224.4,0.20015618]
[1760109681177,0.19108052,1224.6,1224.0,0.20015618]
[1760109681371,0.19108052,1224.2,1224.0,0.20015618]
[1760109681978,0.19108052,1224.3,1224.0,0.20015618]
[1760109683280,0.19108052,1224.2,1224.0,0.20015618]
[1760109683481,0.19108052,1224.2,1223.9,0.20015618]
[1760109683881,0.19108052,1224.1,1223.9,0.20015618]
[1760109684181,0.19108052,1224.1,1223.8,0.20015618]
[1760109684381,0.19108052,1224.0,1223.8,0.20015618]
[1760109685875,0.19108052,1224.2,1223.8,0.20015618]
[1760109686080,0.19108052,1224.3,1224.1,0.20015618]
[1760109686280,0.19108052,1224.5,1224.1,0.20015618]
[1760109687083,0.19108052,1224.4,1224.1,0.20015618]
[1760109687584,0.19108052,1224.5,1224.1,0.20015618]
[1760109687884,0.19108052,1224.6,1224.3,0.20015618]
[1760109688084,0.19108052,1224.7,1224.3,0.20015618]
[1760109688383,0.19108052,1224.7,1223.7,0.59953011]
[1760109688384,0.19108052,1224.8,1224.5,0.20015618]
[1760109689481,0.19108052,1225.0,1224.5,0.20015618]
[1760109689680,0.19108052,1225.1,1224.9,0.20015618]
[1760109689881,0.19108052,1225.2,1224.9,0.20015618]
[1760109690983,0.19108052,1225.4,1224.9,0.20015618]
[1760109691180,0.19108052,1225.4,1225.2,0.20015618]
[1760109691882,0.19108052,1225.4,1225.1,0.20015618]
[1760109692081,0.19108052,1225.4,1225.0,0.20015618]
[1760109692284,0.19108052,1225.1,1224.9,0.20015618]
[1760109692483,0.19108052,1225.2,1224.9,0.20015618]
[1760109692683,0.19108052,1225.2,1225.0,0.20015618]
[1760109692984,0.19108052,1225.2,1224.9,0.20015618]
[1760109693182,0.19108052,1225.3,1224.9,0.20015618]
[1760109693485,0.19108052,1225.3,1225.1,0.20015618]
[1760109694084,0.19108052,1225.2,1225.0,0.20015618]
[1760109694681,0.19108052,1225.4,1225.0,0.20015618]
[1760109695083,0.19108052,1225.4,1225.2,0.20015618]
[1760109696184,0.19108052,1225.6,1224.8,0.59953011]
[1760109696388,0.19108052,1225.6,1225.3,0.20117838]
[1760109696683,0.19108052,1225.5,1225.3,0.20117838]
[1760109696884,0.19108052,1225.5,1224.6,0.59953011]
[1760109696885,0.19108052,1225.5,1225.1,0.20117838]
[1760109697084,0.19108052,1225.5,1225.0,0.20117838]
[1760109697287,0.1419678,1226.0,1224.8,0.20117838]
[1760109697487,0.1419678,1226.0,1224.2,0.59953011]
[1760109697488,0.19263758,1225.0,1224.7,0.20117838]
[1760109697783,0.19263758,1225.0,1224.2,0.59953011]
[1760109697784,0.19263758,1225.0,1224.5,0.20117838]
[1760109697987,0.19263758,1224.7,1224.5,0.20117838]
[1760109700690,0.19263758,1224.7,1224.3,0.20117838]
[1760109700886,0.19263758,1224.5,1224.3,0.20117838]
[1760109701486,0.19263758,1224.5,1224.1,0.20117838]
[1760109701887,0.19263758,1224.3,1224.1,0.20117838]
[1760109702391,0.19263758,1224.2,1223.9,0.20117838]
[1760109702686,0.19263758,1224.2,1223.8,0.20117838]
[1760109702888,0.19263758,1224.2,1223.3,0.59953011]
[1760109702889,0.19263758,1223.9,1223.7,0.20117838]
[1760109703088,0.19263758,1223.9,1223.6,0.20117838]
[1760109703492,0.7832541,1225.7,1223.3,0.20117838]
[1760109703688,0.19251242,1223.4,1223.2,0.20117838]
[1760109703891,0.19251242,1223.4,1223.1,0.20117838]
[1760109704293,0.19251242,1223.3,1223.0,0.20117838]
[1760109704795,0.19251242,1223.3,1222.9,0.20117838]
[1760109705289,0.1419678,1226.0,1222.7,0.20117838]
[1760109705290,0.19251242,1223.0,1222.7,0.20117838]
[1760109705689,0.19251242,1223.0,1222.1,0.59953011]
[1760109705690,0.7832541,1225.2,1222.5,0.20117838]
[1760109705892,0.19198679,1222.7,1222.5,0.20117838]
[1760109706093,0.19198679,1222.7,1222.3,0.20117838]
[1760109706389,0.7832541,1225.0,1222.2,0.20117838]
[1760109706390,0.19198679,1222.4,1222.2,0.20117838]
[1760109706998,0.19198679,1222.5,1222.2,0.20117838]
[1760109708398,0.19198679,1222.7,1222.2,0.20117838]
[1760109708697,0.19198679,1223.1,1222.1,0.59953011]
[1760109708895,0.19198679,1223.2,1222.6,0.20029794]
[1760109709397,0.19198679,1223.0,1222.8,0.20029794]
[1760109709597,0.19198679,1223.0,1222.4,0.20029794]
[1760109709999,0.19198679,1222.8,1222.4,0.20029794]
[1760109710206,0.19198679,1222.8,1222.6,0.20029794]
[1760109710694,0.19198679,1223.0,1222.6,0.20029794]
[1760109710893,0.19198679,1223.0,1222.8,0.20029794]
[1760109711097,0.19198679,1223.1,1222.8,0.20029794]
[1760109711297,0.19198679,1223.2,1222.8,0.20029794]
[1760109711497,0.19198679,1223.2,1221.9,0.20029794]
[1760109711694,0.19198679,1222.6,1221.9,0.20029794]
[1760109711997,0.19198679,1222.7,1222.4,0.20029794]
[1760109712198,0.19198679,1222.7,1222.3,0.20029794]
[1760109712494,0.19198679,1222.5,1222.1,0.20029794]
[1760109712895,0.19198679,1222.3,1221.8,0.20029794]
[1760109713099,0.19198679,1222.5,1221.8,0.20029794]
[1760109713398,0.19198679,1222.5,1222.3,0.20029794]
[1760109713898,0.33426309,1222.6,1222.3,0.20029794]
[1760109714098,0.33426309,1222.6,1222.1,0.20029794]
[1760109714301,0.33426309,1222.6,1222.0,0.20029794]
[1760109714302,0.19198679,1222.3,1222.0,0.20029794]
[1760109714699,0.19198679,1222.2,1222.0,0.20029794]
[1760109715095,0.19198679,1222.2,1221.9,0.20029794]
[1760109715299,0.19198679,1222.3,1221.9,0.20029794]
[1760109715796,0.19198679,1222.2,1221.9,0.20029794]
[1760109715995,0.19198679,1222.3,1222.1,0.20029794]
[1760109716595,0.19198679,1222.3,1221.9,0.20029794]
[1760109716900,0.19198679,1222.1,1221.9,0.20029794]
[1760109717197,0.19198679,1222.1,1221.8,0.20029794]
[1760109717401,0.19198679,1222.0,1221.6,0.20029794]
[1760109717901,0.19198679,1221.8,1221.6,0.20029794]
[1760109718301,0.19198679,1221.8,1221.5,0.20029794]
[1760109718801,0.19198679,1221.8,1221.6,0.20029794]
[1760109719001,0.19198679,1222.0,1221.6,0.20029794]
[1760109719198,0.19198679,1222.0,1221.7,0.20029794]
[1760109719501,0.19198679,1221.9,1221.7,0.20029794]
[1760109719697,0.19198679,1222.0,1221.7,0.20029794]
[1760109720201,0.19198679,1222.2,1220.2,0.59953011]
[1760109720397,0.19198679,1222.2,1219.7,0.79912672]
[1760109720398,0.19198679,1222.3,1222.0,0.19883483]
[1760109720701,0.19198679,1222.5,1222.0,0.19883483]
[1760109720997,0.19198679,1222.7,1222.3,0.19883483]
[1760109721195,0.19198679,1222.8,1222.3,0.19883483]
[1760109721400,0.19198679,1223.2,1221.5,0.59953011]
[1760109721597,0.19198679,1223.3,1223.1,0.19869466]
[1760109721802,0.19198679,1223.3,1222.9,0.19869466]
[1760109722402,0.19198679,1223.3,1222.8,0.19869466]
[1760109722701,0.14217312,1223.7,1222.3,0.19869466]
[1760109723000,0.18948552,1222.8,1222.3,0.19869466]
[1760109723201,0.18948552,1222.8,1222.4,0.19869466]
[1760109723400,0.18948552,1222.6,1222.4,0.19869466]
[1760109724201,0.18948552,1222.7,1222.4,0.19869466]
[1760109724402,0.18948552,1222.9,1222.4,0.19869466]
[1760109724597,0.18948552,1222.9,1222.6,0.19869466]
[1760109725001,0.18948552,1223.0,1222.6,0.19869466]